[Event "Live Chess"]
[Site "Chess.com"]
[Date "2023.05.21"]
[Round "-"]
[White "Rusty_Bridges"]
[Black "Dhaydon19"]
[Result "0-1"]
[WhiteElo "1511"]
[BlackElo "2695"]
[TimeControl "300"]
[EndTime "3:27:19 PDT"]
[Termination "Dhaydon19 won by resignation"]

1. e4 {[%clk 0:04:54.5]} 1... c5 {[%clk 0:04:58.8]} 2. Be2 {[%clk 0:04:52.5]}
2... d6 {[%clk 0:04:58]} 3. f4 {[%clk 0:04:51.5]} 3... Nc6 {[%clk 0:04:57.2]} 4.
Nf3 {[%clk 0:04:50.5]} 4... g6 {[%clk 0:04:57.1]} 5. O-O {[%clk 0:04:49.4]} 5...
Bg7 {[%clk 0:04:56.4]} 6. d3 {[%clk 0:04:48.4]} 6... Nf6 {[%clk 0:04:54]} 7. Nc3
{[%clk 0:04:47.3]} 7... O-O {[%clk 0:04:52.4]} 8. Be3 {[%clk 0:04:46.2]} 8...
Ng4 {[%clk 0:04:51.2]} 9. Bf2 {[%clk 0:04:39.8]} 9... Nxf2 {[%clk 0:04:49.8]}
10. Kxf2 {[%clk 0:04:39.1]} 10... e5 {[%clk 0:04:48.6]} 11. fxe5 {[%clk
0:04:32.8]} 11... Nxe5 {[%clk 0:04:47.5]} 12. Nxe5 {[%clk 0:04:31.5]} 12... Qh4+
{[%clk 0:04:44.8]} 13. Kg1 {[%clk 0:04:28.7]} 13... Bxe5 {[%clk 0:04:43.5]} 14.
g3 {[%clk 0:04:24.6]} 14... Bd4+ {[%clk 0:04:38.2]} 15. Kh1 {[%clk 0:04:20.4]}
15... Qh6 {[%clk 0:04:36.6]} 16. Nd5 {[%clk 0:04:14.4]} 16... Bxb2 {[%clk
0:04:34]} 17. Rb1 {[%clk 0:04:12.5]} 17... Be5 {[%clk 0:04:32.7]} 18. Ne7+
{[%clk 0:04:06.2]} 18... Kh8 {[%clk 0:04:30.8]} 19. Nxc8 {[%clk 0:04:05.1]}
19... Bxg3 {[%clk 0:04:27.7]} 0-1

[Event "Live Chess"]
[Site "Chess.com"]
[Date "2023.05.21"]
[Round "-"]
[White "domrobson"]
[Black "Bunny55"]
[Result "1-0"]
[WhiteElo "1699"]
[BlackElo "945"]
[TimeControl "300"]
[EndTime "3:27:21 PDT"]
[Termination "domrobson won by resignation"]

1. d4 {[%clk 0:04:59.1]} 1... Nf6 {[%clk 0:04:55.7]} 2. c4 {[%clk 0:04:58.1]}
2... g6 {[%clk 0:04:54.5]} 3. Nc3 {[%clk 0:04:57.3]} 3... Bg7 {[%clk 0:04:53.2]}
4. e4 {[%clk 0:04:57]} 4... d6 {[%clk 0:04:51.5]} 5. Be2 {[%clk 0:04:56.6]} 5...
O-O {[%clk 0:04:50]} 6. Be3 {[%clk 0:04:55.8]} 6... Nc6 {[%clk 0:04:48.7]} 7.
Qd2 {[%clk 0:04:54.9]} 7... e5 {[%clk 0:04:47.6]} 8. d5 {[%clk 0:04:53.8]} 8...
Ne7 {[%clk 0:04:46.5]} 9. f3 {[%clk 0:04:50.6]} 9... Bd7 {[%clk 0:04:43.6]} 10.
g4 {[%clk 0:04:49]} 10... Rb8 {[%clk 0:04:38.3]} 11. h4 {[%clk 0:04:47.2]} 11...
b6 {[%clk 0:04:36.9]} 12. h5 {[%clk 0:04:44]} 12... c6 {[%clk 0:04:23.7]} 13.
Bh6 {[%clk 0:04:35.9]} 13... cxd5 {[%clk 0:04:21.4]} 14. hxg6 {[%clk 0:04:33]}
14... Nxg6 {[%clk 0:04:19.1]} 15. Bxg7 {[%clk 0:04:31.4]} 15... Kxg7 {[%clk
0:04:13.9]} 16. Qh6+ {[%clk 0:04:30.6]} 16... Kg8 {[%clk 0:04:12.9]} 17. g5
{[%clk 0:04:29.7]} 1-0

[Event "Live Chess"]
[Site "Chess.com"]
[Date "2023.05.21"]
[Round "-"]
[White "NAZRIZ1977"]
[Black "diana21strabt"]
[Result "0-1"]
[WhiteElo "1955"]
[BlackElo "1747"]
[TimeControl "300"]
[EndTime "3:27:47 PDT"]
[Termination "diana21strabt won by resignation"]

1. c4 {[%clk 0:04:57.7]} 1... e5 {[%clk 0:04:58.1]} 2. g3 {[%clk 0:04:57.2]}
2... Nf6 {[%clk 0:04:57.5]} 3. Bg2 {[%clk 0:04:54.9]} 3... d5 {[%clk 0:04:55.6]}
4. cxd5 {[%clk 0:04:54.8]} 4... Nxd5 {[%clk 0:04:54.6]} 5. Nf3 {[%clk
0:04:54.7]} 5... Nc6 {[%clk 0:04:53]} 6. O-O {[%clk 0:04:53.1]} 6... Be7 {[%clk
0:04:50.6]} 7. d4 {[%clk 0:04:52.6]} 7... exd4 {[%clk 0:04:49.4]} 8. Nxd4 {[%clk
0:04:51.6]} 8... Nxd4 {[%clk 0:04:46.2]} 9. Qxd4 {[%clk 0:04:50.5]} 9... Nf6
{[%clk 0:04:41.6]} 10. Qxd8+ {[%clk 0:04:47.2]} 10... Bxd8 {[%clk 0:04:40.3]}
11. Nc3 {[%clk 0:04:46.5]} 11... c6 {[%clk 0:04:38.7]} 12. a4 {[%clk 0:04:44.9]}
12... Bf5 {[%clk 0:04:36.7]} 13. b4 {[%clk 0:04:42]} 13... Be7 {[%clk
0:04:34.7]} 14. b5 {[%clk 0:04:40.1]} 14... Bb4 {[%clk 0:04:23.5]} 15. bxc6
{[%clk 0:04:27.5]} 15... Bxc3 {[%clk 0:04:21.4]} 16. cxb7 {[%clk 0:04:26.6]}
16... Rb8 {[%clk 0:04:19.2]} 17. Ra3 {[%clk 0:04:25.7]} 17... Bb4 {[%clk
0:04:08.3]} 18. Rb3 {[%clk 0:04:20.8]} 18... Bd6 {[%clk 0:03:55.4]} 19. e4
{[%clk 0:04:09.8]} 19... Be6 {[%clk 0:03:50.5]} 20. Rd3 {[%clk 0:03:59.1]} 20...
Ke7 {[%clk 0:03:35.2]} 21. Rxd6 {[%clk 0:03:45]} 21... Kxd6 {[%clk 0:03:29.4]}
22. Bf4+ {[%clk 0:03:44.4]} 22... Ke7 {[%clk 0:03:24.4]} 23. Bxb8 {[%clk
0:03:42.3]} 23... Rxb8 {[%clk 0:03:23.3]} 24. Rb1 {[%clk 0:03:40.5]} 24... Bd7
{[%clk 0:03:16.3]} 25. a5 {[%clk 0:03:38.5]} 25... a6 {[%clk 0:03:14.7]} 26. e5
{[%clk 0:03:35.4]} 26... Ne8 {[%clk 0:03:10.3]} 27. Rb6 {[%clk 0:03:34.7]} 27...
Nc7 {[%clk 0:03:02.3]} 28. Bf1 {[%clk 0:03:30.5]} 28... f6 {[%clk 0:02:34.7]}
29. exf6+ {[%clk 0:03:25.4]} 29... gxf6 {[%clk 0:02:28.2]} 30. f4 {[%clk
0:03:23]} 30... Be6 {[%clk 0:02:20]} 31. Bg2 {[%clk 0:03:07.5]} 31... Bd5 {[%clk
0:02:05]} 32. Kf2 {[%clk 0:02:56.9]} 32... Bxg2 {[%clk 0:01:55.1]} 33. Kxg2
{[%clk 0:02:56.8]} 33... Ne6 {[%clk 0:01:52.2]} 34. Rxa6 {[%clk 0:02:47.7]}
34... Rxb7 {[%clk 0:01:50.6]} 35. Ra8 {[%clk 0:02:47]} 35... Nc7 {[%clk
0:01:41.8]} 36. a6 {[%clk 0:02:37.4]} 36... Rb2+ {[%clk 0:01:38.8]} 37. Kh3
{[%clk 0:02:36.3]} 37... Nxa8 {[%clk 0:01:36.2]} 0-1

[Event "Live Chess"]
[Site "Chess.com"]
[Date "2023.05.21"]
[Round "-"]
[White "RoaringKnights"]
[Black "MJMykh"]
[Result "1-0"]
[WhiteElo "1074"]
[BlackElo "1159"]
[TimeControl "300"]
[EndTime "3:27:50 PDT"]
[Termination "RoaringKnights won by checkmate"]

1. e4 {[%clk 0:04:57.3]} 1... e5 {[%clk 0:04:58.5]} 2. Nf3 {[%clk 0:04:54.9]}
2... Nc6 {[%clk 0:04:57]} 3. Bc4 {[%clk 0:04:53.3]} 3... Bc5 {[%clk 0:04:55.4]}
4. d3 {[%clk 0:04:51.9]} 4... h6 {[%clk 0:04:54.6]} 5. O-O {[%clk 0:04:48.4]}
5... Nf6 {[%clk 0:04:53.2]} 6. Nc3 {[%clk 0:04:47.6]} 6... O-O {[%clk
0:04:51.4]} 7. h3 {[%clk 0:04:46.6]} 7... d6 {[%clk 0:04:50.5]} 8. Re1 {[%clk
0:04:38.3]} 8... Bd7 {[%clk 0:04:48.3]} 9. Be3 {[%clk 0:04:37]} 9... Bb6 {[%clk
0:04:46.4]} 10. Bxb6 {[%clk 0:04:35.2]} 10... axb6 {[%clk 0:04:46.3]} 11. a3
{[%clk 0:04:34.2]} 11... Na5 {[%clk 0:04:45.6]} 12. Ba2 {[%clk 0:04:29.4]} 12...
Nc6 {[%clk 0:04:41.2]} 13. b4 {[%clk 0:04:28]} 13... Qe7 {[%clk 0:04:33.5]} 14.
Bb3 {[%clk 0:04:23.8]} 14... Nd4 {[%clk 0:04:26.7]} 15. Nxd4 {[%clk 0:04:18.8]}
15... exd4 {[%clk 0:04:26.5]} 16. Nd5 {[%clk 0:04:17.9]} 16... Nxd5 {[%clk
0:04:24.9]} 17. Bxd5 {[%clk 0:04:16.7]} 17... c6 {[%clk 0:04:24.4]} 18. Bb3
{[%clk 0:04:14.9]} 18... Be6 {[%clk 0:04:23.8]} 19. e5 {[%clk 0:04:13.4]} 19...
Bxb3 {[%clk 0:04:22]} 20. cxb3 {[%clk 0:04:12.3]} 20... dxe5 {[%clk 0:04:20.7]}
21. Qh5 {[%clk 0:04:09.7]} 21... Rfe8 {[%clk 0:04:17.1]} 22. f4 {[%clk
0:04:05.8]} 22... f6 {[%clk 0:04:12.7]} 23. fxe5 {[%clk 0:04:03.2]} 23... fxe5
{[%clk 0:04:11.3]} 24. Re2 {[%clk 0:04:01.5]} 24... Kh7 {[%clk 0:04:06.2]} 25.
Qf5+ {[%clk 0:03:57.8]} 25... g6 {[%clk 0:04:04.3]} 26. Qf3 {[%clk 0:03:48.3]}
26... Rf8 {[%clk 0:03:59.7]} 27. Qg3 {[%clk 0:03:46.6]} 27... Rfe8 {[%clk
0:03:56.2]} 28. Re4 {[%clk 0:03:41.5]} 28... Qf6 {[%clk 0:03:47.2]} 29. Rf1
{[%clk 0:03:38.6]} 29... Qg7 {[%clk 0:03:45.5]} 30. Rh4 {[%clk 0:03:24.3]} 30...
g5 {[%clk 0:03:38.2]} 31. Rg4 {[%clk 0:03:18.8]} 31... Rxa3 {[%clk 0:03:33.7]}
32. Rf5 {[%clk 0:03:11.5]} 32... Rxb3 {[%clk 0:03:25.5]} 33. Rfxg5 {[%clk
0:03:07.9]} 33... hxg5 {[%clk 0:03:24.6]} 34. Rxg5 {[%clk 0:03:06.6]} 34... Qh6
{[%clk 0:03:17.5]} 35. Qg4 {[%clk 0:03:02.5]} 35... Rb1+ {[%clk 0:03:10.4]} 36.
Kh2 {[%clk 0:03:01.3]} 36... Qxg5 {[%clk 0:02:54.7]} 37. Qxg5 {[%clk 0:03:00]}
37... Rxb4 {[%clk 0:02:54.2]} 38. Qh5+ {[%clk 0:02:56.3]} 38... Kg7 {[%clk
0:02:52.5]} 39. Qxe8 {[%clk 0:02:55.2]} 39... c5 {[%clk 0:02:49.8]} 40. Qd7+
{[%clk 0:02:53.8]} 40... Kf6 {[%clk 0:02:48.3]} 41. Qxb7 {[%clk 0:02:52.1]}
41... Kf5 {[%clk 0:02:45.4]} 42. Qf7+ {[%clk 0:02:49.2]} 42... Kg5 {[%clk
0:02:43.8]} 43. g3 {[%clk 0:02:40.5]} 43... Rb2+ {[%clk 0:02:42.2]} 44. Kg1
{[%clk 0:02:37.1]} 44... Rb1+ {[%clk 0:02:41.5]} 45. Kf2 {[%clk 0:02:36.1]}
45... Rb2+ {[%clk 0:02:41.2]} 46. Kf3 {[%clk 0:02:35.3]} 46... b5 {[%clk
0:02:35.9]} 47. Qg7+ {[%clk 0:02:30.7]} 47... Kf5 {[%clk 0:02:34]} 48. g4+
{[%clk 0:02:29.4]} 48... Ke6 {[%clk 0:02:32.5]} 49. Qh6+ {[%clk 0:02:26.1]}
49... Kd5 {[%clk 0:02:31.5]} 50. Qf8 {[%clk 0:02:20.9]} 50... Rd2 {[%clk
0:02:27.3]} 51. Qe7 {[%clk 0:02:15.7]} 51... Rxd3+ {[%clk 0:02:26.2]} 52. Kf2
{[%clk 0:02:13.9]} 52... Rxh3 {[%clk 0:02:20.6]} 53. Qd7+ {[%clk 0:02:12.6]}
53... Kc4 {[%clk 0:02:17.9]} 54. Qe6+ {[%clk 0:02:10.2]} 54... Kb4 {[%clk
0:02:14.8]} 55. Qxe5 {[%clk 0:02:08.9]} 55... Rc3 {[%clk 0:02:11.6]} 56. g5
{[%clk 0:02:05.6]} 56... Rc2+ {[%clk 0:02:10.2]} 57. Kg3 {[%clk 0:02:04.5]}
57... Rc3+ {[%clk 0:02:08.9]} 58. Kh4 {[%clk 0:02:03.2]} 58... d3 {[%clk
0:02:05]} 59. Qe4+ {[%clk 0:01:59.7]} 59... c4 {[%clk 0:02:04.1]} 60. g6 {[%clk
0:01:58.1]} 60... d2 {[%clk 0:02:02.5]} 61. Qe2 {[%clk 0:01:56.6]} 61... Rc2
{[%clk 0:01:59.8]} 62. g7 {[%clk 0:01:52.8]} 62... c3 {[%clk 0:01:58.7]} 63.
g8=Q {[%clk 0:01:48.9]} 63... Rc1 {[%clk 0:01:57.2]} 64. Qgg4+ {[%clk
0:01:40.9]} 64... Kb3 {[%clk 0:01:55]} 65. Qxb5+ {[%clk 0:01:39.3]} 65... Kc2
{[%clk 0:01:53.7]} 66. Qgf5+ {[%clk 0:01:35.4]} 66... Kd1 {[%clk 0:01:52]} 67.
Qbd3 {[%clk 0:01:32.1]} 67... c2 {[%clk 0:01:44.1]} 68. Qff1# {[%clk 0:01:30.9]}
1-0

[Event "Live Chess"]
[Site "Chess.com"]
[Date "2023.05.21"]
[Round "-"]
[White "RockTroll"]
[Black "MMmaaxxxx"]
[Result "1-0"]
[WhiteElo "2234"]
[BlackElo "2016"]
[TimeControl "300"]
[EndTime "3:27:53 PDT"]
[Termination "RockTroll won by checkmate"]

1. Nf3 {[%clk 0:04:58.4]} 1... d5 {[%clk 0:04:59.2]} 2. g3 {[%clk 0:04:57.7]}
2... Nf6 {[%clk 0:04:58.2]} 3. Bg2 {[%clk 0:04:57.2]} 3... Bg4 {[%clk
0:04:54.7]} 4. d3 {[%clk 0:04:51.9]} 4... c5 {[%clk 0:04:54]} 5. O-O {[%clk
0:04:46.8]} 5... Nc6 {[%clk 0:04:53.4]} 6. Nc3 {[%clk 0:04:43.3]} 6... e5 {[%clk
0:04:49.8]} 7. h3 {[%clk 0:04:32.9]} 7... Be6 {[%clk 0:04:47.7]} 8. e4 {[%clk
0:04:31.9]} 8... d4 {[%clk 0:04:46.7]} 9. Ne2 {[%clk 0:04:29.2]} 9... Qd7 {[%clk
0:04:45.8]} 10. Ng5 {[%clk 0:04:26.6]} 10... Bd6 {[%clk 0:04:43.4]} 11. f4
{[%clk 0:04:24.1]} 11... h6 {[%clk 0:04:40.3]} 12. Nxe6 {[%clk 0:04:19.5]} 12...
Qxe6 {[%clk 0:04:40.2]} 13. Bd2 {[%clk 0:04:12.7]} 13... O-O {[%clk 0:04:39]}
14. f5 {[%clk 0:04:11.5]} 14... Qd7 {[%clk 0:04:37]} 15. g4 {[%clk 0:04:11.1]}
15... b5 {[%clk 0:04:35.3]} 16. Ng3 {[%clk 0:04:08.7]} 16... Ne8 {[%clk
0:04:29.4]} 17. h4 {[%clk 0:04:05.6]} 17... c4 {[%clk 0:04:20.1]} 18. g5 {[%clk
0:04:04.2]} 18... hxg5 {[%clk 0:04:18.3]} 19. hxg5 {[%clk 0:04:03.4]} 19... Nc7
{[%clk 0:04:11.7]} 20. Qh5 {[%clk 0:04:00]} 20... Rfe8 {[%clk 0:04:04.8]} 21. g6
{[%clk 0:03:56.7]} 21... f6 {[%clk 0:03:59.1]} 22. Qh7+ {[%clk 0:03:55.8]} 22...
Kf8 {[%clk 0:03:58.5]} 23. Qh8+ {[%clk 0:03:55.2]} 23... Ke7 {[%clk 0:03:58.2]}
24. Qxg7+ {[%clk 0:03:54.6]} 24... Kd8 {[%clk 0:03:57.8]} 25. Qxf6+ {[%clk
0:03:53.5]} 25... Be7 {[%clk 0:03:57.4]} 26. Qg7 {[%clk 0:03:47]} 26... Qd6
{[%clk 0:03:31.1]} 27. f6 {[%clk 0:03:36.8]} 27... Bf8 {[%clk 0:03:29.2]} 28.
Qh7 {[%clk 0:03:36.4]} 28... Ne6 {[%clk 0:03:25]} 29. Nf5 {[%clk 0:03:24.3]}
29... Qc7 {[%clk 0:03:19.9]} 30. Qxc7+ {[%clk 0:03:21.3]} 30... Kxc7 {[%clk
0:03:18.6]} 31. g7 {[%clk 0:03:20.5]} 31... Bxg7 {[%clk 0:03:13.7]} 32. fxg7
{[%clk 0:03:19.7]} 32... Rg8 {[%clk 0:03:10.8]} 33. Bh6 {[%clk 0:03:15.6]} 33...
Rad8 {[%clk 0:03:06.4]} 34. Bf3 {[%clk 0:03:12.6]} 34... Rd7 {[%clk 0:03:05.5]}
35. Bh5 {[%clk 0:03:10.9]} 35... Nxg7 {[%clk 0:03:03.7]} 36. Nxg7 {[%clk
0:03:08.9]} 36... Rdxg7+ {[%clk 0:03:00]} 37. Bxg7 {[%clk 0:03:08.3]} 37...
Rxg7+ {[%clk 0:02:59.9]} 38. Kf2 {[%clk 0:03:07.7]} 38... Rh7 {[%clk 0:02:58.5]}
39. Rh1 {[%clk 0:03:06.6]} 39... c3 {[%clk 0:02:53.8]} 40. bxc3 {[%clk
0:03:05.3]} 40... dxc3 {[%clk 0:02:53.1]} 41. Rag1 {[%clk 0:03:03.9]} 41... b4
{[%clk 0:02:50.4]} 42. Bg6 {[%clk 0:03:01.8]} 42... Rd7 {[%clk 0:02:47]} 43. Rh7
{[%clk 0:03:00.3]} 43... Ne7 {[%clk 0:02:44.9]} 44. Bf5 {[%clk 0:02:58.2]} 44...
Nxf5 {[%clk 0:02:43.2]} 45. Rxd7+ {[%clk 0:02:56.7]} 45... Kxd7 {[%clk
0:02:43.1]} 46. exf5 {[%clk 0:02:56.1]} 46... a5 {[%clk 0:02:42.9]} 47. Ke3
{[%clk 0:02:54.8]} 47... a4 {[%clk 0:02:42.4]} 48. Ke4 {[%clk 0:02:53.7]} 48...
b3 {[%clk 0:02:41.3]} 49. axb3 {[%clk 0:02:51.8]} 49... axb3 {[%clk 0:02:41.2]}
50. cxb3 {[%clk 0:02:51]} 50... c2 {[%clk 0:02:41.1]} 51. Rc1 {[%clk 0:02:49.9]}
51... Ke7 {[%clk 0:02:39.7]} 52. Rxc2 {[%clk 0:02:49.4]} 52... Kf7 {[%clk
0:02:39.6]} 53. b4 {[%clk 0:02:48.2]} 53... Ke7 {[%clk 0:02:39.5]} 54. b5 {[%clk
0:02:47.6]} 54... Kf7 {[%clk 0:02:39.4]} 55. b6 {[%clk 0:02:47]} 55... Ke7
{[%clk 0:02:38.6]} 56. b7 {[%clk 0:02:46.4]} 56... Kf7 {[%clk 0:02:38.3]} 57.
b8=Q {[%clk 0:02:45.4]} 57... Ke7 {[%clk 0:02:38.2]} 58. Rc5 {[%clk 0:02:44.1]}
58... Kf6 {[%clk 0:02:37.4]} 59. Rxe5 {[%clk 0:02:42.2]} 59... Kg5 {[%clk
0:02:36.6]} 60. d4 {[%clk 0:02:41.6]} 60... Kg4 {[%clk 0:02:34.5]} 61. d5 {[%clk
0:02:41.2]} 61... Kg3 {[%clk 0:02:34.2]} 62. d6 {[%clk 0:02:40.8]} 62... Kf2
{[%clk 0:02:34.1]} 63. d7 {[%clk 0:02:40.4]} 63... Ke2 {[%clk 0:02:34]} 64. d8=Q
{[%clk 0:02:39.6]} 64... Kf2 {[%clk 0:02:33.4]} 65. f6 {[%clk 0:02:39]} 65...
Ke2 {[%clk 0:02:33.3]} 66. f7 {[%clk 0:02:38.4]} 66... Kf2 {[%clk 0:02:29.6]}
67. f8=Q+ {[%clk 0:02:37.4]} 67... Ke2 {[%clk 0:02:29.5]} 68. Qb2+ {[%clk
0:02:36.2]} 68... Ke1 {[%clk 0:02:28]} 69. Qdd2# {[%clk 0:02:34.8]} 1-0

[Event "Live Chess"]
[Site "Chess.com"]
[Date "2023.05.21"]
[Round "-"]
[White "raminguy"]
[Black "Ferrarifan27"]
[Result "1-0"]
[WhiteElo "1964"]
[BlackElo "2096"]
[TimeControl "300"]
[EndTime "3:27:59 PDT"]
[Termination "raminguy won by checkmate"]

1. d4 {[%clk 0:04:58.6]} 1... Nf6 {[%clk 0:04:58.5]} 2. Nc3 {[%clk 0:04:57.6]}
2... e6 {[%clk 0:04:57.3]} 3. e4 {[%clk 0:04:56.4]} 3... Bb4 {[%clk 0:04:54.9]}
4. e5 {[%clk 0:04:54.9]} 4... Nd5 {[%clk 0:04:53.6]} 5. Qg4 {[%clk 0:04:54.6]}
5... Nxc3 {[%clk 0:04:48.7]} 6. Qxg7 {[%clk 0:04:54.2]} 6... Rf8 {[%clk
0:04:45.5]} 7. a3 {[%clk 0:04:53.3]} 7... Ba5 {[%clk 0:04:37.7]} 8. b4 {[%clk
0:04:52.5]} 8... Bb6 {[%clk 0:04:35.9]} 9. Bg5 {[%clk 0:04:51.9]} 9... f6 {[%clk
0:04:28.7]} 10. Bxf6 {[%clk 0:04:50.1]} 10... Rxf6 {[%clk 0:04:26.5]} 11. exf6
{[%clk 0:04:50]} 11... Bxd4 {[%clk 0:04:05.4]} 12. Qg8# {[%clk 0:04:46.6]} 1-0

[Event "Live Chess"]
[Site "Chess.com"]
[Date "2023.05.21"]
[Round "-"]
[White "Davidagye"]
[Black "Biranidun"]
[Result "0-1"]
[WhiteElo "1679"]
[BlackElo "2540"]
[TimeControl "300"]
[EndTime "3:28:10 PDT"]
[Termination "Biranidun won by checkmate"]

1. e4 {[%clk 0:04:51.5]} 1... c5 {[%clk 0:04:58.5]} 2. Nf3 {[%clk 0:04:50]} 2...
d6 {[%clk 0:04:57.8]} 3. d4 {[%clk 0:04:49.4]} 3... cxd4 {[%clk 0:04:57.7]} 4.
Nxd4 {[%clk 0:04:48.5]} 4... Nf6 {[%clk 0:04:57.4]} 5. Nc3 {[%clk 0:04:47.3]}
5... g6 {[%clk 0:04:57.1]} 6. Be2 {[%clk 0:04:45.2]} 6... Bg7 {[%clk 0:04:56.5]}
7. O-O {[%clk 0:04:44.3]} 7... O-O {[%clk 0:04:56.2]} 8. Be3 {[%clk 0:04:43.3]}
8... Nc6 {[%clk 0:04:55.6]} 9. f3 {[%clk 0:04:41.2]} 9... d5 {[%clk 0:04:54.6]}
10. exd5 {[%clk 0:04:38.7]} 10... Nxd5 {[%clk 0:04:54.5]} 11. Bf2 {[%clk
0:04:37.3]} 11... Nxc3 {[%clk 0:04:53.3]} 12. bxc3 {[%clk 0:04:35.3]} 12... Bd7
{[%clk 0:04:50.6]} 13. Rb1 {[%clk 0:04:30.9]} 13... Qc7 {[%clk 0:04:49.3]} 14.
Nb5 {[%clk 0:04:28.4]} 14... Qc8 {[%clk 0:04:48.8]} 15. Bd4 {[%clk 0:04:22.5]}
15... Nxd4 {[%clk 0:04:47.5]} 16. cxd4 {[%clk 0:04:20.1]} 16... a6 {[%clk
0:04:46.3]} 17. Na3 {[%clk 0:04:14.4]} 17... Qc3 {[%clk 0:04:44.4]} 18. Rb3
{[%clk 0:04:01.4]} 18... Qxd4+ {[%clk 0:04:42.6]} 19. Kh1 {[%clk 0:03:59.3]}
19... Qxd1 {[%clk 0:04:40]} 20. Rxd1 {[%clk 0:03:56.2]} 20... Bc6 {[%clk
0:04:39.9]} 21. Nc4 {[%clk 0:03:45]} 21... b5 {[%clk 0:04:32.4]} 22. Na5 {[%clk
0:03:44.2]} 22... Rfc8 {[%clk 0:04:28.6]} 23. Nxc6 {[%clk 0:03:38.9]} 23... Rxc6
{[%clk 0:04:28.5]} 24. Bd3 {[%clk 0:03:33.5]} 24... Rd8 {[%clk 0:04:24.3]} 25.
h4 {[%clk 0:03:30.6]} 25... h5 {[%clk 0:04:23.1]} 26. Kh2 {[%clk 0:03:26.3]}
26... Bf6 {[%clk 0:04:21.9]} 27. g3 {[%clk 0:03:23.3]} 27... e6 {[%clk
0:04:20.9]} 28. Rb4 {[%clk 0:03:11.7]} 28... Kf8 {[%clk 0:04:18.8]} 29. Rf4
{[%clk 0:03:09.7]} 29... Ke7 {[%clk 0:04:17.8]} 30. Re1 {[%clk 0:03:04.9]} 30...
Bc3 {[%clk 0:04:13.3]} 31. Re2 {[%clk 0:03:02.3]} 31... Rd5 {[%clk 0:04:09.6]}
32. Be4 {[%clk 0:02:59.6]} 32... Re5 {[%clk 0:04:04.9]} 33. Re3 {[%clk
0:02:40.2]} 33... Rc4 {[%clk 0:03:53.7]} 34. Rd3 {[%clk 0:02:32.2]} 34... f5
{[%clk 0:03:51.5]} 35. Bb7 {[%clk 0:02:28.5]} 35... Re2+ {[%clk 0:03:50]} 36.
Kh3 {[%clk 0:02:24.9]} 36... Rxc2 {[%clk 0:03:47.7]} 37. Bxa6 {[%clk 0:02:23]}
37... Rxf4 {[%clk 0:03:46.1]} 38. gxf4 {[%clk 0:02:21.2]} 38... b4 {[%clk
0:03:45]} 39. Bc4 {[%clk 0:02:19.2]} 39... Bd2 {[%clk 0:03:35.8]} 40. Bb3 {[%clk
0:02:14.9]} 40... Rb2 {[%clk 0:03:34.6]} 41. Rd4 {[%clk 0:02:03.5]} 41... Bc3
{[%clk 0:03:06.1]} 42. Rc4 {[%clk 0:01:55.9]} 42... Re2 {[%clk 0:02:58.2]} 43.
Rc7+ {[%clk 0:01:52.1]} 43... Kd6 {[%clk 0:02:57.5]} 44. Rb7 {[%clk 0:01:44.4]}
44... Kc6 {[%clk 0:02:54.6]} 45. Re7 {[%clk 0:01:41.7]} 45... Kd6 {[%clk
0:02:51.3]} 46. Re8 {[%clk 0:01:40.2]} 46... Kd7 {[%clk 0:02:31.7]} 47. Rg8
{[%clk 0:01:37.2]} 47... Bd2 {[%clk 0:02:19.8]} 48. Rxg6 {[%clk 0:01:31.5]}
48... Bxf4 {[%clk 0:02:18.4]} 49. Rg7+ {[%clk 0:01:28.1]} 49... Kd6 {[%clk
0:02:17]} 50. Rg2 {[%clk 0:01:24.7]} 50... Re1 {[%clk 0:02:14.4]} 51. Rg6 {[%clk
0:01:18.2]} 51... Re2 {[%clk 0:02:13.1]} 52. Rg2 {[%clk 0:01:16.4]} 52... Re3
{[%clk 0:02:12.6]} 53. Bd1 {[%clk 0:01:14]} 53... e5 {[%clk 0:02:09.7]} 54. Rg6+
{[%clk 0:01:11.4]} 54... Kc5 {[%clk 0:02:09]} 55. Rg2 {[%clk 0:01:09.4]} 55...
e4 {[%clk 0:02:05.6]} 56. Rf2 {[%clk 0:01:05.5]} 56... Kd4 {[%clk 0:01:57]} 57.
Kg2 {[%clk 0:01:03.8]} 57... Ke5 {[%clk 0:01:54]} 58. fxe4 {[%clk 0:01:02.6]}
58... Rg3+ {[%clk 0:01:50.8]} 59. Kf1 {[%clk 0:01:00.9]} 59... fxe4 {[%clk
0:01:49.8]} 60. Bxh5 {[%clk 0:00:58.1]} 60... Rh3 {[%clk 0:01:48.4]} 61. Bd1
{[%clk 0:00:52]} 61... Rxh4 {[%clk 0:01:46.2]} 62. Re2 {[%clk 0:00:48]} 62...
Rh1+ {[%clk 0:01:44.7]} 63. Kf2 {[%clk 0:00:45.8]} 63... Rxd1 {[%clk 0:01:44.6]}
64. Rb2 {[%clk 0:00:44.4]} 64... Rd2+ {[%clk 0:01:43.1]} 65. Rxd2 {[%clk
0:00:42.8]} 65... Bxd2 {[%clk 0:01:43]} 66. Ke2 {[%clk 0:00:42.3]} 66... Bc3
{[%clk 0:01:42.4]} 67. Ke3 {[%clk 0:00:41.4]} 67... Bd4+ {[%clk 0:01:41.2]} 68.
Ke2 {[%clk 0:00:40.6]} 68... Kd5 {[%clk 0:01:41.1]} 69. Kd2 {[%clk 0:00:39.4]}
69... Kc4 {[%clk 0:01:40.7]} 70. Kc2 {[%clk 0:00:38.4]} 70... e3 {[%clk
0:01:39.9]} 71. Kd1 {[%clk 0:00:37.2]} 71... Kd3 {[%clk 0:01:38.7]} 72. Ke1
{[%clk 0:00:36.4]} 72... Bc3+ {[%clk 0:01:37.7]} 73. Kd1 {[%clk 0:00:34.4]}
73... e2+ {[%clk 0:01:37.6]} 74. Kc1 {[%clk 0:00:33.2]} 74... e1=Q# {[%clk
0:01:37.5]} 0-1

[Event "Live Chess"]
[Site "Chess.com"]
[Date "2023.05.21"]
[Round "-"]
[White "sanjesh_ananda"]
[Black "JoRoSaR"]
[Result "0-1"]
[WhiteElo "1259"]
[BlackElo "1680"]
[TimeControl "300"]
[EndTime "3:28:20 PDT"]
[Termination "JoRoSaR won by resignation"]

1. e4 {[%clk 0:04:59]} 1... c5 {[%clk 0:04:59.1]} 2. Bc4 {[%clk 0:04:57.5]} 2...
Nc6 {[%clk 0:04:58.2]} 3. Nf3 {[%clk 0:04:56.5]} 3... d6 {[%clk 0:04:57.8]} 4.
h3 {[%clk 0:04:49.6]} 4... e5 {[%clk 0:04:54.8]} 5. Nc3 {[%clk 0:04:48.1]} 5...
g6 {[%clk 0:04:53]} 6. O-O {[%clk 0:04:46.6]} 6... Bg7 {[%clk 0:04:52.4]} 7. d3
{[%clk 0:04:38.5]} 7... Nge7 {[%clk 0:04:51.6]} 8. Ng5 {[%clk 0:04:36.2]} 8...
O-O {[%clk 0:04:50.4]} 9. f4 {[%clk 0:04:19.2]} 9... h6 {[%clk 0:04:48.9]} 10.
Nf3 {[%clk 0:04:13.7]} 10... exf4 {[%clk 0:04:23]} 11. Bxf4 {[%clk 0:04:11.8]}
11... Kh7 {[%clk 0:04:22.5]} 12. Qe1 {[%clk 0:03:48.7]} 12... a6 {[%clk
0:04:21]} 13. a3 {[%clk 0:03:37.1]} 13... b5 {[%clk 0:04:15.6]} 14. Bb3 {[%clk
0:03:34.8]} 14... Nd4 {[%clk 0:04:13.3]} 15. Nxd4 {[%clk 0:03:31.2]} 15... Bxd4+
{[%clk 0:04:13.2]} 16. Kh1 {[%clk 0:03:28.4]} 16... Nc6 {[%clk 0:04:04.2]} 17.
Qh4 {[%clk 0:03:21]} 0-1